Departmental family,Entity,Date Paid,Expense type,Expense Area,Supplier,Transaction Number,Amount,Description,Supplier Type,Expenditure Type,
UK Statistics Authority,Office for National Statistics,05-Jan-16,Consultancy - IT,Digital Services Technology and Methodology,E Synergy Solutions,80539993,"8,580.00",Information Management Services,SME,Programme,
UK Statistics Authority,Office for National Statistics,05-Jan-16,Specialist Contractors IT,Digital Services Technology and Methodology,E Synergy Solutions,80539993,"10,152.00",Information Management Services,SME,Programme,
UK Statistics Authority,Office for National Statistics,05-Jan-16,Specialist Contractors IT,Digital Services Technology and Methodology,E Synergy Solutions,80539993,"10,560.00",Information Management Services,SME,Programme,
UK Statistics Authority,Office for National Statistics,05-Jan-16,Capital Major Works >25k      ,Business Services and Development,Mitie Facilities Services Ltd,80540001,"69,885.49",Newport Major works,Large,Programme,
UK Statistics Authority,Office for National Statistics,05-Jan-16,FM Contract Payments,Corporate Services,Mitie Facilities Services Ltd,80540001,"84,205.83",Facilities Management Services,Large,Programme,
UK Statistics Authority,Office for National Statistics,05-Jan-16,Contractual Service Payments - Non IT,Data Collection,National Centre,80540002,"222,025.90",Statistical Services,Large,Programme,
UK Statistics Authority,Office for National Statistics,05-Jan-16,Agency Staff,Business Services and Development,Parity Resources Limited,80540004,"4,271.28",Information Management Services,Large,Programme,
UK Statistics Authority,Office for National Statistics,05-Jan-16,Agency Staff,Census,Parity Resources Limited,80540004,"6,397.06",Information Management Services Census Capability,Large,Programme,
UK Statistics Authority,Office for National Statistics,05-Jan-16,Agency Staff,Census,Parity Resources Limited,80540004,"2,202.14",Information Management Services Census Capability,Large,Programme,
UK Statistics Authority,Office for National Statistics,05-Jan-16,Agency Staff,Digital Services Technology and Methodology,Parity Resources Limited,80540004,"4,954.83",Information Management Services,Large,Programme,
UK Statistics Authority,Office for National Statistics,05-Jan-16,Specialist Contractors IT,Digital Services Technology and Methodology,Parity Resources Limited,80540004,"17,516.88",Information Management Services,Large,Programme,
UK Statistics Authority,Office for National Statistics,05-Jan-16,Specialist Contractors IT,Digital Services Technology and Methodology,Parity Resources Limited,80540004,"15,477.00",Information Management Services,Large,Programme,
UK Statistics Authority,Office for National Statistics,05-Jan-16,Specialist Contractors IT,Digital Services Technology and Methodology,Parity Resources Limited,80540004,"23,443.92",Information Management Services,Large,Programme,
UK Statistics Authority,Office for National Statistics,05-Jan-16,Specialist Contractors IT,Digital Services Technology and Methodology,Parity Resources Limited,80540004,"45,614.31",Information Management Services,Large,Programme,
UK Statistics Authority,Office for National Statistics,05-Jan-16,Specialist Contractors Non IT,Census,Parity Resources Limited,80540004,"14,956.92",Information Management Services Census Capability,Large,Programme,
UK Statistics Authority,Office for National Statistics,05-Jan-16,Specialist Contractors Non IT,Digital Services Technology and Methodology,Parity Resources Limited,80540004,"17,225.33",Information Management Services,Large,Programme,
UK Statistics Authority,Office for National Statistics,07-Jan-16,Telecomms                     ,Digital Services Technology and Methodology,BTgs T/A BTinet,80540110,"33,460.84",Information Management Services,Large,Programme,
UK Statistics Authority,Office for National Statistics,07-Jan-16,Childcare Services,Corporate Services,Computershare Voucher Services,80540114,"31,986.25",Childcare Vouchers,Large,Programme,
UK Statistics Authority,Office for National Statistics,12-Jan-16,Procurement Card,Corporate Services,Barclays Bank Plc,60003249,"21,412.98",Multiple Procurement Card Purchases,Large,Programme,
UK Statistics Authority,Office for National Statistics,12-Jan-16,Stationery                    ,Corporate Services,Barclays Bank Plc,60003249,"5,720.57",Stationery Lodgecard,Large,Programme,
UK Statistics Authority,Office for National Statistics,13-Jan-16,Electricity                   ,Business Services and Development,EDF Energy,60003250,"37,904.48",Drummond Gate Electricity Charges,Large,Programme,
UK Statistics Authority,Office for National Statistics,14-Jan-16,IT Bureau Services            ,Digital Services Technology and Methodology,BT Dfts,80541144,"163,875.00",Data Centre Management Services,Large,Programme,
UK Statistics Authority,Office for National Statistics,14-Jan-16,Telecomms                     ,Data Collection,BT Dfts,80541144,"7,830.00",Data Centre Management Services,Large,Programme,
UK Statistics Authority,Office for National Statistics,14-Jan-16,Telecomms                     ,Digital Services Technology and Methodology,BT Dfts,80541144,"24,237.10",Data Centre Management Services,Large,Programme,
UK Statistics Authority,Office for National Statistics,14-Jan-16,IT Software Maintenance       ,Digital Services Technology and Methodology,Softcat,80541154,"96,000.00",Information Management Services,SME,Programme,
UK Statistics Authority,Office for National Statistics,15-Jan-16,Specialist Contractors IT,Data Collection,Indigoblue,80541232,"24,000.00",Information Management Services,Large,Programme,
UK Statistics Authority,Office for National Statistics,15-Jan-16,Specialist Contractors IT,Digital Services Technology and Methodology,Indigoblue,80541232,"25,200.00",Information Management Services,Large,Programme,
UK Statistics Authority,Office for National Statistics,15-Jan-16,IT Software Maintenance       ,Digital Services Technology and Methodology,CBS Netherlands - Central Bureau Voor Do Statistiek,90000880,"134,002.66",License Renewal,Large,Programme,
UK Statistics Authority,Office for National Statistics,18-Jan-16,Electricity                   ,Business Services and Development,EDF Energy,60003252,"25,982.39",Newport Electricity Charges,Large,Programme,
UK Statistics Authority,Office for National Statistics,18-Jan-16,Electricity                   ,Business Services and Development,EDF Energy,60003252,"29,153.03",Titchfield Electricity Charges,Large,Programme,
UK Statistics Authority,Office for National Statistics,18-Jan-16,Postage                       ,Data Collection,UK Mail,80541475,"35,323.74",Outgoing Postage,Large,Programme,
UK Statistics Authority,Office for National Statistics,19-Jan-16,Capital Major Works >25k      ,Business Services and Development,Paramount Office Interiors Ltd,80541669,"198,790.55",Titchfield Stage 4 Building Major Works,SME,Programme,
UK Statistics Authority,Office for National Statistics,19-Jan-16,Capital Major Works >25k      ,Business Services and Development,Paramount Office Interiors Ltd,80541669,"70,069.81",Titchfield Stage 4 Building Major Works,SME,Programme,
UK Statistics Authority,Office for National Statistics,19-Jan-16,Capital Major Works >25k      ,Business Services and Development,Paramount Office Interiors Ltd,80541669,"99,110.65",Titchfield Stage 4 Building Major Works,SME,Programme,
UK Statistics Authority,Office for National Statistics,19-Jan-16,Major Works Over 25k         ,Business Services and Development,Paramount Office Interiors Ltd,80541669,"14,654.61",Titchfield Stage 4 Building Major Works,SME,Programme,
UK Statistics Authority,Office for National Statistics,19-Jan-16,Major Works Over 25k         ,Business Services and Development,Paramount Office Interiors Ltd,80541669,"32,523.47",Titchfield Stage 4 Building Major Works,SME,Programme,
UK Statistics Authority,Office for National Statistics,19-Jan-16,Major Works Over 25k         ,Business Services and Development,Paramount Office Interiors Ltd,80541669,434.06,Newport Minor Works,SME,Programme,
UK Statistics Authority,Office for National Statistics,19-Jan-16,Statistical Services/Surveys  ,Social and Analysis,TNS UK Ltd,80541673,"397,255.20",Statistical Services,Large,Programme,
UK Statistics Authority,Office for National Statistics,21-Jan-16,Specialist Contractors IT,Digital Services Technology and Methodology,LA International,80542148,"11,952.77",Information Management Services,SME,Programme,
UK Statistics Authority,Office for National Statistics,21-Jan-16,Specialist Contractors IT,Digital Services Technology and Methodology,LA International,80542148,"6,326.10",Information Management Services,SME,Programme,
UK Statistics Authority,Office for National Statistics,21-Jan-16,Specialist Contractors IT,Digital Services Technology and Methodology,LA International,80542148,"25,473.31",Information Management Services,SME,Programme,
UK Statistics Authority,Office for National Statistics,21-Jan-16,Specialist Contractors Non IT,National Accounts and Economic Statistics,LA International,80542148,"8,501.14",Information Management Services,SME,Programme,
UK Statistics Authority,Office for National Statistics,21-Jan-16,Travel & Subsistence,Corporate Services,Redfern Travel,80542152,"28,025.47",Travel and Accommodation Booking Service,SME,Programme,
UK Statistics Authority,Office for National Statistics,22-Jan-16,Specialist Contractors IT,Digital Services Technology and Methodology,Magenic Technologies Ltd,80542164,"64,909.56",Information Management Services,Large,Programme,
UK Statistics Authority,Office for National Statistics,26-Jan-16,IT Bureau Services            ,Digital Services Technology and Methodology,Bramble.CC,80542539,"34,989.17",Information Management Services,SME,Programme,
UK Statistics Authority,Office for National Statistics,26-Jan-16,IT Software Maintenance       ,Digital Services Technology and Methodology,Computacenter (UK) Limited,80542545,"94,516.80",Information Management Services,Large,Programme,
UK Statistics Authority,Office for National Statistics,27-Jan-16,IT Bureau Services            ,Digital Services Technology and Methodology,Bramble.CC,80542575,475.02,Information Management Services,SME,Programme,
UK Statistics Authority,Office for National Statistics,27-Jan-16,IT Bureau Services            ,Digital Services Technology and Methodology,Bramble.CC,80542575,"37,522.91",Information Management Services,SME,Programme,
UK Statistics Authority,Office for National Statistics,27-Jan-16,IT Bureau Services            ,Digital Services Technology and Methodology,Bramble.CC,80542575,"1,844.93",Information Management Services,SME,Programme,
UK Statistics Authority,Office for National Statistics,27-Jan-16,Agency Staff,Business Services and Development,Parity Resources Limited,80542584,"3,388.32",Information Management Services,Large,Programme,
UK Statistics Authority,Office for National Statistics,27-Jan-16,Agency Staff,Census,Parity Resources Limited,80542584,"3,837.14",Information Management Services Census Capability,Large,Programme,
UK Statistics Authority,Office for National Statistics,27-Jan-16,Agency Staff,Census,Parity Resources Limited,80542584,"2,021.80",Information Management Services Census Capability,Large,Programme,
UK Statistics Authority,Office for National Statistics,27-Jan-16,Agency Staff,Digital Services Technology and Methodology,Parity Resources Limited,80542584,"4,005.62",Information Management Services,Large,Programme,
UK Statistics Authority,Office for National Statistics,27-Jan-16,Specialist Contractors IT,Digital Services Technology and Methodology,Parity Resources Limited,80542584,"14,822.71",Information Management Services,Large,Programme,
UK Statistics Authority,Office for National Statistics,27-Jan-16,Specialist Contractors IT,Digital Services Technology and Methodology,Parity Resources Limited,80542584,"11,959.50",Information Management Services,Large,Programme,
UK Statistics Authority,Office for National Statistics,27-Jan-16,Specialist Contractors IT,Digital Services Technology and Methodology,Parity Resources Limited,80542584,"22,209.33",Information Management Services,Large,Programme,
UK Statistics Authority,Office for National Statistics,27-Jan-16,Specialist Contractors IT,Digital Services Technology and Methodology,Parity Resources Limited,80542584,"38,562.77",Information Management Services,Large,Programme,
UK Statistics Authority,Office for National Statistics,27-Jan-16,Specialist Contractors Non IT,Census,Parity Resources Limited,80542584,"13,295.04",Information Management Services Census Capability,Large,Programme,
UK Statistics Authority,Office for National Statistics,27-Jan-16,Specialist Contractors Non IT,Data Collection,Parity Resources Limited,80542584,"7,382.70",Information Management Services,Large,Programme,
UK Statistics Authority,Office for National Statistics,27-Jan-16,Specialist Contractors Non IT,Digital Services Technology and Methodology,Parity Resources Limited,80542584,"10,195.00",Information Management Services,Large,Programme,
UK Statistics Authority,Office for National Statistics,27-Jan-16,Specialist Contractors IT,Digital Services Technology and Methodology,Sopra Steria,80542587,"42,462.72",Information Management Services,Large,Programme,
UK Statistics Authority,Office for National Statistics,28-Jan-16,Statistical Services/Surveys  ,National Accounts and Economic Statistics,Aecom Professional Services Llp,80543084,"71,276.11",Construction Price and Cost Indices,SME,Programme,
UK Statistics Authority,Office for National Statistics,28-Jan-16,IT Bureau Services            ,Digital Services Technology and Methodology,BT Dfts,80543085,"8,963.32",BT Cloud Services,Large,Programme,
UK Statistics Authority,Office for National Statistics,28-Jan-16,Telecomms                     ,Data Collection,BT Dfts,80543085,"9,030.00",BT Cloud Services,Large,Programme,
UK Statistics Authority,Office for National Statistics,28-Jan-16,Telecomms                     ,Digital Services Technology and Methodology,BT Dfts,80543085,"24,237.10",BT Cloud Services,Large,Programme,
UK Statistics Authority,Office for National Statistics,28-Jan-16,IT Maintenance Hardware       ,Digital Services Technology and Methodology,Computacenter (UK) Limited,80543088,"232,559.05",Information Management Services,Large,Programme,
UK Statistics Authority,Office for National Statistics,28-Jan-16,IT Software Maintenance       ,Digital Services Technology and Methodology,Computacenter (UK) Limited,80543088,"111,993.20",Information Management Services,Large,Programme,
UK Statistics Authority,Office for National Statistics,28-Jan-16,Consultancy - IT,Digital Services Technology and Methodology,E Synergy Solutions,80543091,"13,860.00",Information Management Services,SME,Programme,
UK Statistics Authority,Office for National Statistics,28-Jan-16,Contractual Service Payments - IT,Digital Services Technology and Methodology,E Synergy Solutions,80543091,"4,788.00",Information Management Services,SME,Programme,
UK Statistics Authority,Office for National Statistics,28-Jan-16,Contractual Service Payments - IT,Digital Services Technology and Methodology,E Synergy Solutions,80543091,"3,666.00",Information Management Services,SME,Programme,
UK Statistics Authority,Office for National Statistics,28-Jan-16,Contractual Service Payments - IT,Digital Services Technology and Methodology,E Synergy Solutions,80543091,"8,178.00",Information Management Services,SME,Programme,
UK Statistics Authority,Office for National Statistics,28-Jan-16,Specialist Contractors IT,Digital Services Technology and Methodology,E Synergy Solutions,80543091,"14,190.00",Information Management Services,SME,Programme,
UK Statistics Authority,Office for National Statistics,28-Jan-16,Specialist Contractors IT,Digital Services Technology and Methodology,E Synergy Solutions,80543091,"18,708.00",Information Management Services,SME,Programme,
UK Statistics Authority,Office for National Statistics,28-Jan-16,Specialist Contractors IT,Digital Services Technology and Methodology,E Synergy Solutions,80543091,"9,600.00",Information Management Services,SME,Programme,
UK Statistics Authority,Office for National Statistics,28-Jan-16,Specialist Contractors IT,Digital Services Technology and Methodology,E Synergy Solutions,80543091,"4,935.00",Information Management Services,SME,Programme,
UK Statistics Authority,Office for National Statistics,28-Jan-16,Consultants Non IT,Social and Analysis,Equiniti Limited,80543093,"33,819.01",Information Management Services,Large,Programme,
UK Statistics Authority,Office for National Statistics,28-Jan-16,IT Bureau Services            ,Social and Analysis,Equiniti Limited,80543093,"18,161.09",Information Management Services,Large,Programme,
UK Statistics Authority,Office for National Statistics,28-Jan-16,Wood Utility,Business Services and Development,Forever Fuels Ltd,80543094,"27,009.04",Fuel Pellets for Biomass Boiler,Large,Programme,
UK Statistics Authority,Office for National Statistics,28-Jan-16,Specialist Contractors Non IT,Business Services and Development,HLG Services (UK) Ltd T/A HLG Associates,80543097,"26,967.00",Sourcing and Procurement Strategies,SME,Programme,
UK Statistics Authority,Office for National Statistics,28-Jan-16,Consultancy - Non IT,Census,Indigoblue,80543098,"21,600.00",Information Management Services Census Capability,Large,Programme,
UK Statistics Authority,Office for National Statistics,28-Jan-16,Specialist Contractors IT,Data Collection,Indigoblue,80543098,"11,400.00",Information Management Services,Large,Programme,
UK Statistics Authority,Office for National Statistics,28-Jan-16,Contractual Service Payments - IT,Census,Kainos,80543101,"72,304.80",Information Management Services Census Capability,Large,Programme,
UK Statistics Authority,Office for National Statistics,28-Jan-16,Specialist Contractors IT,Digital Services Technology and Methodology,LA International,80543102,"13,902.22",Information Management Services,SME,Programme,
UK Statistics Authority,Office for National Statistics,28-Jan-16,Specialist Contractors IT,Digital Services Technology and Methodology,LA International,80543102,"8,064.00",Information Management Services,SME,Programme,
UK Statistics Authority,Office for National Statistics,28-Jan-16,Specialist Contractors IT,Digital Services Technology and Methodology,LA International,80543102,"6,336.00",Information Management Services,SME,Programme,
UK Statistics Authority,Office for National Statistics,28-Jan-16,Contractual Service Payments - Non IT,Social and Analysis,London School of Hygiene & Tropical Medicine,80543104,"24,237.00",Statistical Services,Large,Programme,
UK Statistics Authority,Office for National Statistics,28-Jan-16,Contractual Service Payments - Non IT,Social and Analysis,London School of Hygiene & Tropical Medicine,80543104,"31,318.25",Statistical Services,Large,Programme,
UK Statistics Authority,Office for National Statistics,28-Jan-16,FM Contract Payments,Corporate Srevices,Mitie Facilities Services Ltd,80543109,"357,401.93",Facilities Management Services,Large,Programme,
UK Statistics Authority,Office for National Statistics,28-Jan-16,Contractual Service Payments - Non IT,Data Collection,NISRA,80543111,"101,670.76",Statistical Services,Large,Programme,
UK Statistics Authority,Office for National Statistics,28-Jan-16,Energy and Environment Consultancy,Social and Analysis,Ricardo-Aea Ltd,80543115,"28,024.80",Statistical Services,SME,Programme,
UK Statistics Authority,Office for National Statistics,28-Jan-16,IT Software Maintenance       ,Digital Services Technology and Methodology,Specialist Computer Centres,80543117,"61,374.61",VmWare Software Maintenance,Large,Programme,
UK Statistics Authority,Office for National Statistics,28-Jan-16,Statistical Services/Surveys  ,National Accounts and Economic Statistics,TNS UK Ltd,80543118,"180,153.60",Statistical Services,Large,Programme,
UK Statistics Authority,Office for National Statistics,29-Jan-16,Electricity                   ,Business Services and Development,EDF Energy,60003256,"36,738.97",Newport Electricity Chrges,Large,Programme,
UK Statistics Authority,Office for National Statistics,29-Jan-16,FM Contract Payments,Corporate Srevices,Mitie Facilities Services Ltd,60003257,"55,220.40",Facilities Management Services,Large,Programme,
UK Statistics Authority,Office for National Statistics,29-Jan-16,Capitalised Specialist Contractors It,Digital Services Technology and Methodology,Methods Digital Ltd,60003258,"70,648.20",Information Management Services,Large,Programme,
UK Statistics Authority,Office for National Statistics,29-Jan-16,Contractual Service Payments - Non IT,Data Collection,National Centre,60003259,"50,349.90",Statistical Services,Large,Programme,
